[Event "EYCC Open-U10 2019"]
[Site "Bratislava"]
[Date "2019.08.06"]
[Round "5.35"]
[White "Georgiadis, Anastasios"]
[Black "Bazilius, Augustinas"]
[Result "0-1"]
[ECO "D85"]
[WhiteElo "1391"]
[BlackElo "1666"]
[Annotator "NA"]
[PlyCount "166"]
[EventDate "2019.08.02"]
[EventType "swiss"]
[EventCountry "SVK"]
[SourceTitle "playchess.com"]
[Source "ChessBase"]
[SourceQuality "1"]
[TimeControl "40/5400+30:1800+30"]

1. d4 {[%emt 0:00:00]} Nf6 {[%emt 0:00:00]} 2. c4 {[%emt 0:00:00]} g6 {[%emt 0:00:14]} 3. Nc3 {[%emt 0:00:06]} d5 {[%emt 0:00:10]} 4. cxd5 {[%emt 0:00:54]} Nxd5 {[%emt 0:00:21]} 5. e4 {[%emt 0:01:31]} Nxc3 {[%emt 0:01:43]} 6. bxc3 {[%emt 0:00:08]} Bg7 {[%emt 0:00:13]} 7. Qa4+ {[%emt 0:00:59]} Nd7 {[%emt 0:01:39]} 8. Nf3 {[%emt 0:03:17]} O-O {[%emt 0:00:46]} 9. Bg5 {[%emt 0:03:22]} c5 {[%emt 0:02:13]} 10. Qa3 {[%emt 0:03:07]} Qb6 {[%emt 0:13:21]} 11. Rd1 {[%emt 0:06:31]} h6 {[%emt 0:04:37]} 12. Be3 {[%emt 0:02:19]} Qc6 {[%emt 0:02:35]} 13. e5 {[%emt 0:02:53]} b5 {[%emt 0:03:38]} 14. Qb2 {[%emt 0:02:54]} Rb8 {[%emt 0:01:45]} 15. Qd2 {[%emt 0:02:36]} b4 {[%emt 0:04:12]} 16. cxb4 {[%emt 0:05:38]} cxb4 {[%emt 0:05:24]} 17. Rc1 {[%emt 0:02:47]} Qb7 {[%emt 0:02:10]} 18. Bd3 {[%emt 0:06:37]} h5 {[%emt 0:01:37]} 19. e6 {[%emt 0:03:42]} fxe6 {[%emt 0:01:48]} 20. Bxg6 {[%emt 0:02:32]} e5 {[%emt 0:00:13]} 21. Ng5 {[%emt 0:05:56]} Qxg2 {[%emt 0:02:53]} 22. Be4 {[%emt 0:00:36]} Qg4 {[%emt 0:00:48]} 23. Bd5+ {[%emt 0:03:38]} Kh8 {[%emt 0:00:57]} 24. Be6 {[%emt 0:01:10]} Qg2 {[%emt 0:04:09]} 25. Rf1 {[%emt 0:03:55]} Ba6 {[%emt 0:07:59]} 26. Bc4 {[%emt 0:02:58]} Bxc4 {[%emt 0:02:30]} 27. Rxc4 {[%emt 0:00:09]} exd4 {[%emt 0:03:50]} 28. Bxd4 {[%emt 0:01:25]} Ne5 {[%emt 0:02:45]} 29. Bxe5 {[%emt 0:01:54]} Bxe5 {[%emt 0:00:19]} 30. Qe3 {[%emt 0:01:57]} Bc3+ {[%emt 0:04:51]} 31. Rxc3 {[%emt 0:00:22]} bxc3 {[%emt 0:00:28]} 32. Qe5+ {[%emt 0:00:27]} Kg8 {[%emt 0:02:32]} 33. Qe6+ {[%emt 0:00:44]} Kg7 {[%emt 0:02:41]} 34. Qxe7+ {[%emt 0:00:47]} Kg6 {[%emt 0:00:14]} 35. Qh7+ {[%emt 0:00:32]} Kf6 {[%emt 0:03:05]} 36. Ne4+ {[%emt 0:01:39]} Qxe4+ {[%emt 0:02:37]} 37. Qxe4 {[%emt 0:00:09]} Rfe8 {[%emt 0:00:11]} 38. Qxe8 {[%emt 0:00:06]} Rxe8+ {[%emt 0:00:12]} 39. Kd1 {[%emt 0:00:38]} Kf5 {[%emt 0:02:17]} 40. Kc2 {[%emt 0:00:00]} Re2+ {[%emt 0:00:00]} 41. Kxc3 {[%emt 0:01:46]} Rxa2 {[%emt 0:00:54]} 42. Kb3 {[%emt 0:08:11]} Ra6 {[%emt 0:03:25]} 43. Rc1 {[%emt 0:05:46]} Rb6+ {[%emt 0:00:50]} 44. Ka4 {[%emt 0:01:34]} Rh6 {[%emt 0:05:00]} 45. Rc4 {[%emt 0:00:59]} Re6 {[%emt 0:05:25]} 46. Rc7 {[%emt 0:02:58]} Re2 {[%emt 0:01:32]} 47. Kb3 a5 {[%emt 0:01:07]} 48. Rh7 {[%emt 0:05:50]} Kg5 {[%emt 0:04:47]} 49. Rf7 {[%emt 0:01:40]} Kg6 {[%emt 0:00:36]} 50. Rf8 {[%emt 0:01:30]} Re5 {[%emt 0:01:00]} 51. Rc8 {[%emt 0:03:49]} Rf5 {[%emt 0:01:56]} 52. Rc2 {[%emt 0:01:39]} Kg5 {[%emt 0:00:37]} 53. Ka4 {[%emt 0:01:23]} Kg4 {[%emt 0:01:04]} 54. Rc3 {[%emt 0:01:21]} Rxf2 {[%emt 0:01:57]} 55. h3+ {[%emt 0:00:15]} Kh4 {[%emt 0:00:45]} 56. Kxa5 {[%emt 0:00:23]} Rh2 {[%emt 0:00:06]} 57. Kb4 {[%emt 0:01:05]} Rxh3 {[%emt 0:00:28]} 58. Rc4+ {[%emt 0:00:29]} Kg5 {[%emt 0:00:23]} 59. Rc5+ {[%emt 0:00:34]} Kf6 {[%emt 0:00:45]} 60. Rc6+ {[%emt 0:00:17]} Ke7 {[%emt 0:00:24]} 61. Rh6 {[%emt 0:00:22]} Kf7 {[%emt 0:01:33]} 62. Kc4 {[%emt 0:01:35]} Kg7 {[%emt 0:00:12]} 63. Ra6 {[%emt 0:00:34]} h4 {[%emt 0:00:49]} 64. Kd4 {[%emt 0:01:32]} Rg3 {[%emt 0:02:04]} 65. Ra1 {[%emt 0:01:16]} Kg6 {[%emt 0:00:37]} 66. Ke4 {[%emt 0:01:29]} Kg5 {[%emt 0:00:18]} 67. Rh1 {[%emt 0:01:16]} Kg4 {[%emt 0:00:12]} 68. Rh2 {[%emt 0:00:47]} h3 {[%emt 0:00:20]} 69. Rf2 {[%emt 0:00:39]} Ra3 {[%emt 0:01:14]} 70. Rf7 {[%emt 0:00:47]} Kg3 {[%emt 0:00:18]} 71. Rg7+ {[%emt 0:00:19]} Kh2 {[%emt 0:00:27]} 72. Kf4 {[%emt 0:00:20]} Kh1 {[%emt 0:01:07]} 73. Rg8 {[%emt 0:00:40]} h2 {[%emt 0:02:21]} 74. Rg7 {[%emt 0:00:13]} Ra1 {[%emt 0:02:32]} 75. Kf3 {[%emt 0:00:34]} Rf1+ {[%emt 0:00:37]} 76. Ke2 {[%emt 0:01:09]} Rg1 {[%emt 0:03:14]} 77. Rh7 {[%emt 0:00:41]} Kg2 {[%emt 0:00:45]} 78. Rg7+ {[%emt 0:00:25]} Kh3 {[%emt 0:00:45]} 79. Rh7+ {[%emt 0:00:23]} Kg3 {[%emt 0:00:17]} 80. Rg7+ {[%emt 0:00:26]} Kf4 {[%emt 0:00:31]} 81. Rf7+ {[%emt 0:00:17]} Ke5 {[%emt 0:00:32]} 82. Re7+ {[%emt 0:00:12]} Kf6 {[%emt 0:00:31]} 83. Rh7 {[%emt 0:00:05]} h1=Q 0-1

[Event "EYCC Open-U10 2019"]
[Site "Bratislava"]
[Date "2019.08.06"]
[Round "5.36"]
[White "Sarafis, Rafail"]
[Black "Englisch, Tobias"]
[Result "0-1"]
[ECO "D92"]
[WhiteElo "1094"]
[BlackElo "1643"]
[Annotator "NA"]
[PlyCount "58"]
[EventDate "2019.08.02"]
[EventType "swiss"]
[EventCountry "SVK"]
[SourceTitle "playchess.com"]
[Source "ChessBase"]
[SourceQuality "1"]
[TimeControl "40/5400+30:1800+30"]

1. d4 {[%emt 0:00:00]} Nf6 {[%emt 0:00:00]} 2. c4 {[%emt 0:00:00]} g6 {[%emt 0:00:00]} 3. Nc3 {[%emt 0:00:00]} d5 {[%emt 0:00:00]} 4. Nf3 {[%emt 0:00:24]} Bg7 {[%emt 0:00:13]} 5. Bf4 {[%emt 0:00:21]} c5 {[%emt 0:01:02]} 6. e3 {[%emt 0:00:25]} O-O {[%emt 0:01:25]} 7. Rc1 {[%emt 0:00:43]} cxd4 {[%emt 0:06:38]} 8. Nxd4 {[%emt 0:01:17]} Nc6 {[%emt 0:09:55]} 9. Be2 {[%emt 0:09:42]} Nxd4 {[%emt 0:03:08]} 10. exd4 {[%emt 0:04:47]} dxc4 {[%emt 0:00:15]} 11. Bxc4 {[%emt 0:00:13]} a6 {[%emt 0:16:04]} 12. O-O {[%emt 0:04:02]} b5 {[%emt 0:02:09]} 13. Bb3 {[%emt 0:00:27]} Bb7 {[%emt 0:00:51]} 14. f3 {[%emt 0:00:14]} Nd5 {[%emt 0:11:33]} 15. Nxd5 {[%emt 0:08:26]} Bxd5 {[%emt 0:00:11]} 16. Be5 {[%emt 0:00:45]} Bxb3 {[%emt 0:00:28]} 17. Qxb3 {[%emt 0:02:35]} Bxe5 {[%emt 0:00:42]} 18. dxe5 {[%emt 0:00:16]} Qd4+ {[%emt 0:00:07]} 19. Kh1 {[%emt 0:00:02]} Qxe5 {[%emt 0:00:23]} 20. Rfe1 {[%emt 0:00:11]} Qf6 {[%emt 0:01:13]} 21. Rc7 {[%emt 0:03:34]} Rfc8 {[%emt 0:08:27]} 22. Rcxe7 {[%emt 0:01:14]} Qxe7 {[%emt 0:00:24]} 23. Qd1 {[%emt 0:03:46]} Qf6 {[%emt 0:00:59]} 24. Qb3 {[%emt 0:00:55]} Re8 {[%emt 0:00:24]} 25. Rc1 {[%emt 0:00:57]} Re2 {[%emt 0:00:18]} 26. Qd5 {[%emt 0:03:32]} Rae8 {[%emt 0:00:40]} 27. Rg1 {[%emt 0:01:19]} Qb6 {[%emt 0:01:58]} 28. Qg5 {[%emt 0:01:20]} Re1 {[%emt 0:00:20]} 29. Qc1 {[%emt 0:03:16]} Qxg1# {[%emt 0:00:05]} 0-1

[Event "EYCC Open-U10 2019"]
[Site "Bratislava"]
[Date "2019.08.06"]
[Round "5.37"]
[White "Sauer, Tim"]
[Black "Tichy, Tomas"]
[Result "1/2-1/2"]
[ECO "A38"]
[WhiteElo "1635"]
[BlackElo "1810"]
[Annotator "NA"]
[PlyCount "85"]
[EventDate "2019.08.02"]
[EventType "swiss"]
[EventCountry "SVK"]
[SourceTitle "playchess.com"]
[Source "ChessBase"]
[SourceQuality "1"]
[TimeControl "40/5400+30:1800+30"]

1. c4 {[%emt 0:00:00]} c5 {[%emt 0:00:00]} 2. Nc3 {[%emt 0:00:00]} Nc6 {[%emt 0:00:00]} 3. Nf3 {[%emt 0:00:00]} Nf6 {[%emt 0:00:09]} 4. g3 {[%emt 0:02:02]} g6 {[%emt 0:00:17]} 5. Bg2 {[%emt 0:00:06]} Bg7 {[%emt 0:00:07]} 6. O-O {[%emt 0:00:15]} d6 {[%emt 0:00:06]} 7. d4 {[%emt 0:00:24]} cxd4 {[%emt 0:00:43]} 8. Nxd4 {[%emt 0:00:07]} Bd7 {[%emt 0:00:26]} 9. e3 {[%emt 0:18:56]} h5 {[%emt 0:01:02]} 10. Rb1 {[%emt 0:03:24]} h4 {[%emt 0:06:36]} 11. b4 {[%emt 0:02:41]} Qc8 {[%emt 0:08:00]} 12. Nxc6 {[%emt 0:13:12]} Bxc6 {[%emt 0:01:39]} 13. Nd5 {[%emt 0:02:26]} Bd7 {[%emt 0:10:58]} 14. Bb2 {[%emt 0:17:14]} Nxd5 {[%emt 0:18:11]} 15. Bxg7 {[%emt 0:03:27]} Rh7 {[%emt 0:03:08]} 16. Bxd5 {[%emt 0:12:47]} Rxg7 {[%emt 0:02:45]} 17. Qf3 {[%emt 0:02:30]} Bg4 {[%emt 0:06:35]} 18. Qf4 {[%emt 0:02:52]} Rh7 {[%emt 0:08:33]} 19. Bg2 {[%emt 0:06:01]} Bh3 {[%emt 0:05:15]} 20. Qf3 {[%emt 0:01:35]} Bxg2 {[%emt 0:05:52]} 21. Qxg2 {[%emt 0:01:20]} Rh5 {[%emt 0:04:11]} 22. Rfc1 {[%emt 0:01:35]} b6 {[%emt 0:01:42]} 23. Qe4 {[%emt 0:02:14]} hxg3 {[%emt 0:02:14]} 24. fxg3 {[%emt 0:01:16]} Re5 {[%emt 0:00:39]} 25. Qf3 {[%emt 0:00:45]} Rb8 {[%emt 0:01:06]} 26. Rc3 {[%emt 0:03:25]} Qd7 {[%emt 0:02:03]} 27. Rbc1 {[%emt 0:00:25]} Rc8 {[%emt 0:00:40]} 28. Qf4 {[%emt 0:02:01]} Qe6 {[%emt 0:01:32]} 29. Qd4 {[%emt 0:00:34]} Qf5 {[%emt 0:00:57]} 30. Qf4 {[%emt 0:00:29]} Qe6 {[%emt 0:00:51]} 31. Qd4 {[%emt 0:00:39]} Re4 {[%emt 0:01:45]} 32. Qd3 {[%emt 0:00:18]} Qe5 {[%emt 0:01:13]} 33. a3 {[%emt 0:00:33]} Qe6 {[%emt 0:01:12]} 34. Kg2 {[%emt 0:00:42]} Re5 {[%emt 0:01:31]} 35. R1c2 {[%emt 0:00:33]} Qg4 {[%emt 0:01:03]} 36. h3 {[%emt 0:00:34]} Qe6 {[%emt 0:00:41]} 37. Rc1 {[%emt 0:00:23]} Qf6 {[%emt 0:00:50]} 38. Qe2 {[%emt 0:00:36]} Qf5 {[%emt 0:00:24]} 39. R1c2 {[%emt 0:00:33]} Qe6 {[%emt 0:00:52]} 40. Rc1 {[%emt 0:00:00]} Rf5 {[%emt 0:00:00]} 41. Qc2 {[%emt 0:05:59]} Re5 {[%emt 0:06:25]} 42. Qd3 {[%emt 0:10:52]} Rc7 {[%emt 0:05:58]} 43. Qd4 1/2-1/2

[Event "EYCC Open-U10 2019"]
[Site "Bratislava"]
[Date "2019.08.06"]
[Round "5.38"]
[White "Hasanli, Ziya"]
[Black "Mammi, Ottavio"]
[Result "1-0"]
[ECO "D05"]
[WhiteElo "1315"]
[BlackElo "1477"]
[Annotator "NA"]
[PlyCount "83"]
[EventDate "2019.08.02"]
[EventType "swiss"]
[EventCountry "SVK"]
[SourceTitle "playchess.com"]
[Source "ChessBase"]
[SourceQuality "1"]
[TimeControl "40/5400+30:1800+30"]

1. d4 {[%emt 0:00:00]} d5 {[%emt 0:00:00]} 2. Nf3 {[%emt 0:00:49]} Nf6 {[%emt 0:00:01]} 3. e3 {[%emt 0:00:49]} e6 {[%emt 0:00:23]} 4. Bd3 {[%emt 0:00:52]} Bd6 {[%emt 0:00:18]} 5. O-O {[%emt 0:01:21]} O-O {[%emt 0:00:33]} 6. b3 {[%emt 0:01:24]} b6 {[%emt 0:00:22]} 7. Bb2 {[%emt 0:01:47]} Bb7 {[%emt 0:02:53]} 8. c4 {[%emt 0:03:45]} c5 {[%emt 0:00:16]} 9. Nc3 {[%emt 0:01:41]} Nbd7 {[%emt 0:01:56]} 10. Rc1 {[%emt 0:02:14]} Ne4 {[%emt 0:00:14]} 11. Nd2 {[%emt 0:10:01]} Qh4 {[%emt 0:08:42]} 12. Nf3 {[%emt 0:17:59]} Qe7 {[%emt 0:02:32]} 13. Nd2 {[%emt 0:00:59]} Nxd2 {[%emt 0:03:58]} 14. Qxd2 {[%emt 0:00:06]} Qh4 {[%emt 0:01:13]} 15. g3 {[%emt 0:04:21]} Qe7 {[%emt 0:10:37]} 16. Qe2 {[%emt 0:07:13]} f5 {[%emt 0:04:31]} 17. f4 {[%emt 0:02:49]} Rf6 {[%emt 0:02:42]} 18. Qf2 {[%emt 0:12:51]} Rh6 {[%emt 0:02:10]} 19. cxd5 {[%emt 0:03:36]} exd5 {[%emt 0:01:00]} 20. Bxf5 {[%emt 0:00:38]} Nf6 {[%emt 0:00:34]} 21. Nb5 {[%emt 0:03:07]} g6 {[%emt 0:00:34]} 22. Nxd6 {[%emt 0:02:53]} Qxd6 {[%emt 0:00:35]} 23. dxc5 {[%emt 0:00:56]} bxc5 {[%emt 0:00:02]} 24. Bxf6 {[%emt 0:01:43]} Qxf6 {[%emt 0:00:01]} 25. Bg4 {[%emt 0:00:00]} Qe7 {[%emt 0:00:56]} 26. Rfe1 {[%emt 0:03:50]} Rf8 {[%emt 0:02:42]} 27. Qc2 {[%emt 0:00:55]} c4 {[%emt 0:06:06]} 28. bxc4 {[%emt 0:01:24]} dxc4 {[%emt 0:00:05]} 29. Qxc4+ {[%emt 0:00:14]} Kh8 {[%emt 0:00:10]} 30. Qc3+ {[%emt 0:00:23]} Kg8 {[%emt 0:01:01]} 31. Qc4+ {[%emt 0:00:14]} Kh8 {[%emt 0:00:00]} 32. Qd4+ {[%emt 0:00:37]} Kg8 {[%emt 0:00:00]} 33. Bd1 {[%emt 0:00:00]} Rd8 {[%emt 0:00:00]} 34. Bb3+ {[%emt 0:00:00]} Bd5 35. Bxd5+ {[%emt 0:00:00]} Rxd5 {[%emt 0:00:00]} 36. Qxd5+ {[%emt 0:00:00]} Kg7 {[%emt 0:00:00]} 37. Qe5+ {[%emt 0:00:00]} Qxe5 {[%emt 0:00:00]} 38. fxe5 {[%emt 0:00:00]} Rh5 {[%emt 0:00:00]} 39. Rc7+ {[%emt 0:00:00]} Kg8 {[%emt 0:00:00]} 40. Rd1 {[%emt 0:00:00]} Rxe5 {[%emt 0:00:00]} 41. Rd8+ {[%emt 0:01:19]} Re8 {[%emt 0:02:26]} 42. Rxe8# {[%emt 0:00:03]} 1-0

[Event "EYCC Open-U10 2019"]
[Site "Bratislava"]
[Date "2019.08.06"]
[Round "5.39"]
[White "Tran, Sixten"]
[Black "Morozov, Saveliy"]
[Result "1/2-1/2"]
[ECO "B22"]
[WhiteElo "1516"]
[BlackElo "1278"]
[Annotator "NA"]
[PlyCount "123"]
[EventDate "2019.08.02"]
[EventType "swiss"]
[EventCountry "SVK"]
[SourceTitle "playchess.com"]
[Source "ChessBase"]
[SourceQuality "1"]
[TimeControl "40/5400+30:1800+30"]

1. e4 {[%emt 0:00:00]} c5 {[%emt 0:00:00]} 2. c3 {[%emt 0:00:00]} d5 {[%emt 0:00:00]} 3. exd5 {[%emt 0:00:00]} Qxd5 {[%emt 0:00:00]} 4. d4 {[%emt 0:00:03]} Nf6 {[%emt 0:00:00]} 5. Nf3 {[%emt 0:00:13]} Nc6 {[%emt 0:00:06]} 6. Be3 {[%emt 0:02:54]} cxd4 {[%emt 0:03:59]} 7. cxd4 {[%emt 0:01:30]} e6 {[%emt 0:00:14]} 8. a3 {[%emt 0:06:25]} Be7 {[%emt 0:02:45]} 9. Nc3 {[%emt 0:01:45]} Qd6 {[%emt 0:00:09]} 10. Nb5 {[%emt 0:02:03]} Qd8 {[%emt 0:00:15]} 11. Bd3 {[%emt 0:17:25]} O-O {[%emt 0:00:29]} 12. Qc2 {[%emt 0:03:59]} a6 {[%emt 0:00:59]} 13. Nc3 {[%emt 0:01:57]} h6 {[%emt 0:04:21]} 14. O-O {[%emt 0:07:48]} b6 {[%emt 0:09:34]} 15. Ne4 {[%emt 0:06:10]} Bb7 {[%emt 0:01:18]} 16. Nxf6+ {[%emt 0:03:42]} Bxf6 {[%emt 0:02:29]} 17. Bh7+ {[%emt 0:07:17]} Kh8 {[%emt 0:00:14]} 18. Be4 {[%emt 0:01:13]} Rc8 {[%emt 0:02:04]} 19. Qd2 {[%emt 0:02:04]} Na5 {[%emt 0:05:37]} 20. Bxb7 {[%emt 0:09:36]} Nxb7 {[%emt 0:00:24]} 21. Rac1 {[%emt 0:01:38]} Rxc1 {[%emt 0:08:19]} 22. Rxc1 {[%emt 0:01:25]} Kg8 {[%emt 0:01:15]} 23. Ne5 {[%emt 0:03:19]} Na5 {[%emt 0:18:16]} 24. Nc6 {[%emt 0:03:50]} Nxc6 {[%emt 0:00:12]} 25. Rxc6 {[%emt 0:00:18]} e5 {[%emt 0:12:42]} 26. d5 {[%emt 0:02:11]} b5 {[%emt 0:01:24]} 27. Rxa6 {[%emt 0:01:12]} Qd7 {[%emt 0:00:18]} 28. Bxh6 {[%emt 0:00:47]} Rc8 {[%emt 0:01:49]} 29. Be3 {[%emt 0:01:14]} Rd8 {[%emt 0:01:00]} 30. d6 {[%emt 0:01:13]} Qe6 {[%emt 0:01:11]} 31. f3 {[%emt 0:02:42]} Qd7 {[%emt 0:05:19]} 32. Bg5 {[%emt 0:02:11]} Bxg5 {[%emt 0:00:22]} 33. Qxg5 {[%emt 0:00:16]} f6 {[%emt 0:00:06]} 34. Qd2 {[%emt 0:01:01]} Qc8 {[%emt 0:00:29]} 35. Qd5+ {[%emt 0:00:31]} Kh8 {[%emt 0:00:23]} 36. Rc6 {[%emt 0:01:12]} Qb7 {[%emt 0:01:15]} 37. Rc5 {[%emt 0:01:56]} Qb6 {[%emt 0:02:12]} 38. Kf1 {[%emt 0:02:40]} b4 {[%emt 0:03:11]} 39. d7 {[%emt 0:02:01]} Qa6+ {[%emt 0:00:46]} 40. Qc4 {[%emt 0:00:00]} Qd6 {[%emt 0:00:00]} 41. Rd5 {[%emt 0:05:12]} Qb8 {[%emt 0:04:07]} 42. Qxb4 {[%emt 0:01:53]} Qc7 {[%emt 0:00:24]} 43. Qc5 {[%emt 0:02:24]} Qb7 {[%emt 0:00:28]} 44. Qb5 {[%emt 0:04:42]} Qc7 {[%emt 0:00:11]} 45. Rc5 {[%emt 0:01:04]} Qd6 {[%emt 0:01:15]} 46. Rc8 {[%emt 0:03:27]} Qd1+ {[%emt 0:00:24]} 47. Kf2 {[%emt 0:00:36]} Qd2+ {[%emt 0:00:08]} 48. Qe2 {[%emt 0:00:58]} Qd4+ {[%emt 0:00:18]} 49. Ke1 {[%emt 0:00:43]} Qxd7 {[%emt 0:04:01]} 50. Rxd8+ {[%emt 0:00:11]} Qxd8 {[%emt 0:00:03]} 51. b4 {[%emt 0:00:37]} Qd4 {[%emt 0:00:11]} 52. b5 {[%emt 0:01:21]} Qa1+ {[%emt 0:00:16]} 53. Kf2 {[%emt 0:00:46]} Qxa3 {[%emt 0:00:28]} 54. b6 {[%emt 0:00:29]} Qc5+ {[%emt 0:00:21]} 55. Qe3 {[%emt 0:00:17]} Qc2+ {[%emt 0:00:12]} 56. Kg3 {[%emt 0:00:48]} Qg6+ {[%emt 0:01:04]} 57. Kh3 {[%emt 0:04:14]} Qh5+ {[%emt 0:00:19]} 58. Kg3 {[%emt 0:00:11]} Qg6+ {[%emt 0:00:05]} 59. Kf2 {[%emt 0:00:18]} Qc2+ {[%emt 0:00:10]} 60. Ke1 {[%emt 0:00:53]} Qb1+ {[%emt 0:02:18]} 61. Kd2 {[%emt 0:00:43]} Qa2+ {[%emt 0:02:26]} 62. Kc1 {[%emt 0:00:58]} 1/2-1/2

[Event "EYCC Open-U10 2019"]
[Site "Bratislava"]
[Date "2019.08.06"]
[Round "5.40"]
[White "Misiuk, Martynas"]
[Black "Ahmadzada, Huseyn"]
[Result "1-0"]
[ECO "B17"]
[WhiteElo "1304"]
[BlackElo "1497"]
[Annotator "NA"]
[PlyCount "51"]
[EventDate "2019.08.02"]
[EventType "swiss"]
[EventCountry "SVK"]
[SourceTitle "playchess.com"]
[Source "ChessBase"]
[SourceQuality "1"]
[TimeControl "40/5400+30:1800+30"]

1. e4 {[%emt 0:00:00]} c6 {[%emt 0:00:00]} 2. d4 {[%emt 0:00:00]} d5 {[%emt 0:00:00]} 3. Nd2 {[%emt 0:00:30]} dxe4 {[%emt 0:00:01]} 4. Nxe4 {[%emt 0:00:12]} Nd7 {[%emt 0:01:11]} 5. Ng5 {[%emt 0:00:29]} Ngf6 {[%emt 0:01:02]} 6. Bc4 {[%emt 0:00:45]} e6 {[%emt 0:00:29]} 7. Qe2 {[%emt 0:00:53]} Nb6 {[%emt 0:02:18]} 8. Bd3 {[%emt 0:02:02]} Qxd4 {[%emt 0:06:34]} 9. c3 {[%emt 0:04:19]} Qd8 {[%emt 0:01:49]} 10. N1f3 {[%emt 0:00:34]} h6 {[%emt 0:01:29]} 11. Ne4 {[%emt 0:00:22]} Nxe4 {[%emt 0:00:36]} 12. Qxe4 {[%emt 0:02:31]} Qd5 {[%emt 0:02:05]} 13. Qe2 {[%emt 0:01:10]} Be7 {[%emt 0:01:08]} 14. Bf4 {[%emt 0:02:27]} Bd7 {[%emt 0:01:45]} 15. O-O {[%emt 0:01:13]} O-O-O {[%emt 0:02:44]} 16. Rad1 {[%emt 0:07:53]} Be8 {[%emt 0:04:06]} 17. Bc4 {[%emt 0:04:36]} Qxc4 {[%emt 0:01:58]} 18. Qe5 {[%emt 0:00:05]} Bd6 {[%emt 0:06:00]} 19. Rxd6 {[%emt 0:00:42]} Rxd6 {[%emt 0:05:23]} 20. Qxd6 {[%emt 0:00:21]} Qxf1+ {[%emt 0:05:41]} 21. Kxf1 {[%emt 0:01:27]} Nd5 {[%emt 0:01:30]} 22. Bg3 {[%emt 0:00:27]} b5 {[%emt 0:04:06]} 23. Nd4 {[%emt 0:00:44]} a6 {[%emt 0:01:32]} 24. b3 {[%emt 0:00:30]} e5 {[%emt 0:00:47]} 25. Bxe5 {[%emt 0:01:01]} f6 {[%emt 0:00:19]} 26. Bg3 {[%emt 0:00:27]} 1-0

[Event "EYCC Open-U10 2019"]
[Site "Bratislava"]
[Date "2019.08.06"]
[Round "5.41"]
[White "Dimitrov, Martin"]
[Black "Kote, Aleks"]
[Result "1-0"]
[ECO "B20"]
[WhiteElo "1473"]
[BlackElo "1257"]
[Annotator "NA"]
[PlyCount "91"]
[EventDate "2019.08.02"]
[EventType "swiss"]
[EventCountry "SVK"]
[SourceTitle "playchess.com"]
[Source "ChessBase"]
[SourceQuality "1"]
[TimeControl "40/5400+30:1800+30"]

1. e4 {[%emt 0:00:00]} c5 {[%emt 0:00:00]} 2. b3 {[%emt 0:00:00]} Nc6 {[%emt 0:00:41]} 3. Bb2 {[%emt 0:00:00]} Nf6 {[%emt 0:00:32]} 4. e5 {[%emt 0:00:02]} Nd5 {[%emt 0:00:30]} 5. Qf3 {[%emt 0:00:13]} e6 {[%emt 0:00:27]} 6. Qg3 {[%emt 0:00:09]} Nde7 {[%emt 0:00:33]} 7. Bd3 {[%emt 0:01:10]} d6 {[%emt 0:02:25]} 8. Nf3 {[%emt 0:03:55]} Ng6 {[%emt 0:03:22]} 9. Bb5 {[%emt 0:01:33]} d5 {[%emt 0:02:10]} 10. Bxc6+ {[%emt 0:02:15]} bxc6 {[%emt 0:00:21]} 11. d3 {[%emt 0:00:45]} Be7 {[%emt 0:01:04]} 12. h4 {[%emt 0:01:23]} h5 {[%emt 0:04:40]} 13. Nbd2 {[%emt 0:00:38]} Qc7 {[%emt 0:02:29]} 14. O-O-O {[%emt 0:01:18]} a5 {[%emt 0:04:03]} 15. a4 {[%emt 0:00:56]} Bd7 {[%emt 0:04:12]} 16. Ng5 {[%emt 0:06:01]} Bxg5 {[%emt 0:16:14]} 17. Qxg5 {[%emt 0:05:33]} Qd8 {[%emt 0:01:08]} 18. Qg3 {[%emt 0:00:33]} Qb6 19. f4 {[%emt 0:04:20]} Rb8 {[%emt 0:01:42]} 20. Rde1 {[%emt 0:04:31]} Qb4 {[%emt 0:00:57]} 21. Ref1 {[%emt 0:03:27]} Rh7 {[%emt 0:03:54]} 22. Qg5 {[%emt 0:03:06]} Ne7 {[%emt 0:00:33]} 23. g4 {[%emt 0:01:19]} hxg4 {[%emt 0:00:11]} 24. Qxg4 {[%emt 0:00:30]} Nf5 {[%emt 0:00:07]} 25. Rfg1 {[%emt 0:08:08]} Nd4 {[%emt 0:02:26]} 26. h5 {[%emt 0:09:30]} Nf5 {[%emt 0:02:12]} 27. Qg5 {[%emt 0:10:59]} Ne3 {[%emt 0:07:45]} 28. h6 {[%emt 0:14:36]} g6 {[%emt 0:00:16]} 29. Qf6 {[%emt 0:00:34]} Nf5 {[%emt 0:00:43]} 30. Rxg6 {[%emt 0:02:02]} fxg6 {[%emt 0:02:36]} 31. Qxg6+ {[%emt 0:00:09]} Kd8 {[%emt 0:00:09]} 32. Qxh7 {[%emt 0:00:19]} Kc7 {[%emt 0:00:10]} 33. c4 {[%emt 0:10:34]} dxc4 34. dxc4 {[%emt 0:00:52]} Ng3 {[%emt 0:01:09]} 35. Rh2 {[%emt 0:01:32]} Nf5 {[%emt 0:00:18]} 36. Qg6 {[%emt 0:00:36]} Nd4 {[%emt 0:00:17]} 37. Qd3 {[%emt 0:00:16]} Nf5 {[%emt 0:00:43]} 38. h7 {[%emt 0:01:17]} Rh8 {[%emt 0:00:04]} 39. Qc3 {[%emt 0:01:36]} Qxc3+ {[%emt 0:00:24]} 40. Bxc3 {[%emt 0:00:00]} Kb6 {[%emt 0:00:00]} 41. Ne4 {[%emt 0:00:39]} Be8 {[%emt 0:00:29]} 42. Nf6 {[%emt 0:01:03]} Bg6 {[%emt 0:00:08]} 43. Nd7+ {[%emt 0:01:14]} Kc7 {[%emt 0:00:25]} 44. Nxc5 {[%emt 0:00:37]} Rxh7 {[%emt 0:00:05]} 45. Nxe6+ {[%emt 0:00:40]} Kd7 {[%emt 0:00:13]} 46. Nf8+ 1-0